[Event "EYCC Open-U12 2019"]
[Site "Bratislava"]
[Date "2019.08.04"]
[Round "3.4"]
[White "Kvaloy, Aksel Bu"]
[Black "Ciric, Pavle"]
[Result "0-1"]
[ECO "C11"]
[WhiteElo "2205"]
[BlackElo "1987"]
[Annotator "NA"]
[PlyCount "60"]
[EventDate "2019.08.02"]
[EventType "swiss"]
[EventCountry "SVK"]
[SourceTitle "playchess.com"]
[Source "ChessBase"]
[SourceQuality "1"]
[TimeControl "40/5400+30:1800+30"]

1. e4 {[%emt 0:00:00]} e6 {[%emt 0:00:00]} 2. Nf3 {[%emt 0:00:00]} d5 {[%emt 0:00:00]} 3. Nc3 {[%emt 0:00:00]} d4 {[%emt 0:01:39]} 4. Ne2 {[%emt 0:00:00]} c5 {[%emt 0:00:05]} 5. c3 {[%emt 0:00:18]} Nc6 {[%emt 0:01:56]} 6. cxd4 {[%emt 0:00:16]} cxd4 {[%emt 0:00:16]} 7. Qa4 {[%emt 0:00:25]} Bc5 {[%emt 0:01:28]} 8. b4 {[%emt 0:00:25]} Bxb4 {[%emt 0:06:53]} 9. Nexd4 {[%emt 0:00:50]} Qa5 {[%emt 0:07:44]} 10. Qxa5 {[%emt 0:07:14]} Bxa5 {[%emt 0:00:05]} 11. Bb5 {[%emt 0:03:01]} Bd7 {[%emt 0:02:09]} 12. Bxc6 {[%emt 0:00:02]} bxc6 {[%emt 0:01:38]} 13. Ba3 {[%emt 0:01:25]} f6 {[%emt 0:02:56]} 14. Nb3 {[%emt 0:02:25]} Bb6 {[%emt 0:00:18]} 15. d4 {[%emt 0:00:25]} Kf7 {[%emt 0:00:38]} 16. Nc5 {[%emt 0:01:41]} Bxc5 {[%emt 0:00:59]} 17. Bxc5 {[%emt 0:00:16]} Ne7 {[%emt 0:01:28]} 18. Ke2 {[%emt 0:04:56]} Rhb8 19. Rhb1 {[%emt 0:01:02]} Bc8 {[%emt 0:03:02]} 20. Rxb8 {[%emt 0:07:42]} Rxb8 {[%emt 0:00:02]} 21. Bxa7 {[%emt 0:00:22]} Ba6+ {[%emt 0:00:13]} 22. Ke3 {[%emt 0:01:28]} Rb2 {[%emt 0:00:03]} 23. Nd2 {[%emt 0:01:15]} f5 {[%emt 0:00:15]} 24. Nb3 {[%emt 0:28:39]} Re2+ {[%emt 0:00:58]} 25. Kf3 {[%emt 0:00:02]} fxe4+ {[%emt 0:00:48]} 26. Kg4 {[%emt 0:08:48]} Nf5 {[%emt 0:09:00]} 27. a4 {[%emt 0:14:40]} Rxf2 {[%emt 0:04:29]} 28. Nc5 {[%emt 0:02:50]} Be2+ {[%emt 0:00:09]} 29. Kh3 {[%emt 0:00:10]} h5 {[%emt 0:01:02]} 30. Nxe4 {[%emt 0:01:14]} Bg4# {[%emt 0:00:03]} 0-1

[Event "EYCC Open-U12 2019"]
[Site "Bratislava"]
[Date "2019.08.04"]
[Round "3.5"]
[White "Tobak, Mikhail"]
[Black "Petrovskiy, Vadim"]
[Result "0-1"]
[ECO "A00"]
[WhiteElo "1943"]
[BlackElo "2090"]
[Annotator "NA"]
[PlyCount "54"]
[EventDate "2019.08.02"]
[EventType "swiss"]
[EventCountry "SVK"]
[SourceTitle "playchess.com"]
[Source "ChessBase"]
[SourceQuality "1"]
[TimeControl "40/5400+30:1800+30"]

1. g3 {[%emt 0:00:00]} d5 {[%emt 0:00:37]} 2. Bg2 {[%emt 0:00:00]} Nc6 {[%emt 0:00:12]} 3. d3 {[%emt 0:00:00]} e5 {[%emt 0:01:54]} 4. Nf3 {[%emt 0:00:23]} Nf6 {[%emt 0:00:43]} 5. O-O {[%emt 0:00:11]} h6 {[%emt 0:06:19]} 6. Nbd2 {[%emt 0:02:34]} Be6 {[%emt 0:02:07]} 7. c3 {[%emt 0:00:59]} Qd7 {[%emt 0:01:02]} 8. b4 {[%emt 0:01:03]} a6 {[%emt 0:04:05]} 9. Nb3 {[%emt 0:01:33]} b6 {[%emt 0:04:00]} 10. Nfd2 {[%emt 0:03:18]} a5 {[%emt 0:03:02]} 11. b5 {[%emt 0:01:42]} Nd8 {[%emt 0:00:56]} 12. a4 {[%emt 0:00:18]} Bh3 {[%emt 0:01:57]} 13. c4 {[%emt 0:01:46]} Bxg2 {[%emt 0:01:25]} 14. Kxg2 {[%emt 0:00:12]} d4 {[%emt 0:00:31]} 15. Nf3 {[%emt 0:01:32]} Bd6 {[%emt 0:05:33]} 16. e3 {[%emt 0:06:44]} dxe3 {[%emt 0:04:33]} 17. fxe3 {[%emt 0:00:45]} Nb7 {[%emt 0:03:44]} 18. d4 {[%emt 0:05:18]} e4 {[%emt 0:01:59]} 19. Nfd2 {[%emt 0:03:07]} h5 {[%emt 0:01:45]} 20. h3 Rh6 {[%emt 0:15:26]} 21. Ba3 {[%emt 0:12:05]} Bxa3 {[%emt 0:01:10]} 22. Rxa3 {[%emt 0:00:07]} h4 {[%emt 0:00:05]} 23. c5 {[%emt 0:05:22]} hxg3 {[%emt 0:09:19]} 24. Rh1 {[%emt 0:00:59]} Qe6 {[%emt 0:01:38]} 25. Qc2 {[%emt 0:02:49]} Qf5 {[%emt 0:01:27]} 26. Nxe4 {[%emt 0:06:01]} Nxe4 {[%emt 0:01:53]} 27. cxb6 {[%emt 0:01:12]} Rf6 0-1

[Event "EYCC Open-U12 2019"]
[Site "Bratislava"]
[Date "2019.08.04"]
[Round "3.6"]
[White "Ozkan, Taha"]
[Black "Makkar, Rajat"]
[Result "0-1"]
[ECO "D45"]
[WhiteElo "2140"]
[BlackElo "2064"]
[Annotator "NA"]
[PlyCount "66"]
[EventDate "2019.08.02"]
[EventType "swiss"]
[EventCountry "SVK"]
[SourceTitle "playchess.com"]
[Source "ChessBase"]
[SourceQuality "1"]
[TimeControl "40/5400+30:1800+30"]

1. d4 {[%emt 0:00:00]} d5 {[%emt 0:00:00]} 2. c4 {[%emt 0:00:00]} c6 {[%emt 0:00:00]} 3. Nf3 {[%emt 0:00:00]} Nf6 {[%emt 0:00:00]} 4. Nc3 {[%emt 0:00:03]} e6 {[%emt 0:00:10]} 5. e3 {[%emt 0:00:08]} Nbd7 {[%emt 0:00:18]} 6. Qc2 {[%emt 0:00:11]} Bd6 {[%emt 0:01:02]} 7. b3 {[%emt 0:00:16]} O-O {[%emt 0:02:09]} 8. Be2 {[%emt 0:00:22]} b6 {[%emt 0:01:56]} 9. Bb2 {[%emt 0:00:59]} Bb7 {[%emt 0:01:31]} 10. O-O {[%emt 0:01:07]} Qe7 {[%emt 0:02:03]} 11. Rac1 {[%emt 0:01:37]} Rac8 {[%emt 0:02:24]} 12. Rfd1 {[%emt 0:02:28]} Rfe8 {[%emt 0:02:34]} 13. Qb1 {[%emt 0:03:19]} Bb8 {[%emt 0:04:31]} 14. Qa1 {[%emt 0:06:10]} Ne4 {[%emt 0:03:51]} 15. cxd5 {[%emt 0:12:55]} Nxc3 {[%emt 0:03:45]} 16. Bxc3 {[%emt 0:01:21]} exd5 {[%emt 0:00:34]} 17. Qb1 {[%emt 0:02:49]} Nf6 {[%emt 0:03:31]} 18. Qf5 {[%emt 0:05:41]} Ne4 {[%emt 0:02:40]} 19. Be1 {[%emt 0:01:43]} Rcd8 {[%emt 0:04:05]} 20. Qh5 {[%emt 0:04:20]} Rd6 {[%emt 0:04:23]} 21. Qh4 {[%emt 0:11:16]} Qf8 {[%emt 0:03:33]} 22. Ne5 {[%emt 0:20:32]} Rh6 {[%emt 0:03:36]} 23. Qg4 {[%emt 0:01:30]} Bc8 {[%emt 0:03:31]} 24. Qf3 {[%emt 0:01:52]} f6 {[%emt 0:01:34]} 25. Nxc6 {[%emt 0:02:14]} Bxh2+ {[%emt 0:01:53]} 26. Kf1 {[%emt 0:00:05]} Bc7 {[%emt 0:03:58]} 27. g3 {[%emt 0:02:27]} Qf7 {[%emt 0:02:06]} 28. Bd3 {[%emt 0:09:31]} Ng5 {[%emt 0:04:49]} 29. Qe2 {[%emt 0:01:50]} Qe6 {[%emt 0:02:23]} 30. Qb2 {[%emt 0:02:23]} Qg4 {[%emt 0:00:52]} 31. Kg1 {[%emt 0:05:32]} Rh1+ {[%emt 0:00:24]} 32. Kxh1 {[%emt 0:00:19]} Qh3+ {[%emt 0:00:07]} 33. Kg1 {[%emt 0:00:10]} Nf3# {[%emt 0:00:06]} 0-1

[Event "EYCC Open-U12 2019"]
[Site "Bratislava"]
[Date "2019.08.04"]
[Round "3.7"]
[White "Chyndygyr, Tamerlan"]
[Black "Fiszer, Bartosz"]
[Result "1/2-1/2"]
[ECO "E92"]
[WhiteElo "2018"]
[BlackElo "2124"]
[Annotator "NA"]
[PlyCount "42"]
[EventDate "2019.08.02"]
[EventType "swiss"]
[EventCountry "SVK"]
[SourceTitle "playchess.com"]
[Source "ChessBase"]
[SourceQuality "1"]
[TimeControl "40/5400+30:1800+30"]

1. d4 {[%emt 0:00:00]} Nf6 {[%emt 0:00:00]} 2. c4 {[%emt 0:00:00]} g6 {[%emt 0:00:02]} 3. Nc3 {[%emt 0:02:00]} Bg7 {[%emt 0:00:10]} 4. e4 {[%emt 0:01:49]} d6 {[%emt 0:00:10]} 5. Be2 {[%emt 0:01:50]} O-O {[%emt 0:00:10]} 6. Nf3 {[%emt 0:01:38]} e5 {[%emt 0:00:29]} 7. Be3 {[%emt 0:01:28]} Ng4 {[%emt 0:01:43]} 8. Bg5 {[%emt 0:03:26]} f6 {[%emt 0:01:36]} 9. Bc1 {[%emt 0:03:16]} exd4 {[%emt 0:00:22]} 10. Nxd4 {[%emt 0:00:50]} f5 {[%emt 0:00:31]} 11. h3 {[%emt 0:02:45]} Nh6 {[%emt 0:01:30]} 12. Bxh6 {[%emt 0:01:17]} Bxh6 {[%emt 0:00:35]} 13. exf5 {[%emt 0:00:09]} Bxf5 {[%emt 0:01:41]} 14. Nxf5 {[%emt 0:01:26]} Rxf5 {[%emt 0:00:49]} 15. O-O {[%emt 0:01:26]} Nc6 {[%emt 0:05:51]} 16. Bg4 {[%emt 0:01:19]} Rf8 {[%emt 0:04:44]} 17. Qb3 {[%emt 0:03:16]} Na5 {[%emt 0:20:27]} 18. Qa4 {[%emt 0:06:07]} Nc6 {[%emt 0:01:16]} 19. Qb3 {[%emt 0:07:04]} Na5 {[%emt 0:02:21]} 20. Qa4 {[%emt 0:00:50]} Nc6 {[%emt 0:00:06]} 21. Qb3 {[%emt 0:03:27]} Na5 1/2-1/2

[Event "EYCC Open-U12 2019"]
[Site "Bratislava"]
[Date "2019.08.04"]
[Round "3.8"]
[White "Piliposyan, Robert"]
[Black "Trost, Edvin"]
[Result "1-0"]
[ECO "D85"]
[WhiteElo "2156"]
[BlackElo "2069"]
[Annotator "NA"]
[PlyCount "115"]
[EventDate "2019.08.02"]
[EventType "swiss"]
[EventCountry "SVK"]
[SourceTitle "playchess.com"]
[Source "ChessBase"]
[SourceQuality "1"]
[TimeControl "40/5400+30:1800+30"]

1. d4 {[%emt 0:00:02]} Nf6 {[%emt 0:00:00]} 2. c4 {[%emt 0:00:09]} g6 {[%emt 0:00:21]} 3. Nc3 {[%emt 0:00:12]} d5 {[%emt 0:00:05]} 4. cxd5 {[%emt 0:00:05]} Nxd5 {[%emt 0:00:05]} 5. e4 {[%emt 0:00:03]} Nxc3 {[%emt 0:00:07]} 6. bxc3 {[%emt 0:00:02]} Bg7 {[%emt 0:00:28]} 7. Be3 {[%emt 0:03:08]} O-O {[%emt 0:02:34]} 8. Bc4 {[%emt 0:00:42]} c5 {[%emt 0:04:26]} 9. Ne2 {[%emt 0:00:55]} Nc6 {[%emt 0:01:08]} 10. O-O {[%emt 0:00:52]} Na5 {[%emt 0:05:58]} 11. Bd3 {[%emt 0:01:07]} cxd4 {[%emt 0:03:21]} 12. cxd4 {[%emt 0:01:26]} Be6 {[%emt 0:01:08]} 13. d5 {[%emt 0:01:43]} Bd7 {[%emt 0:05:27]} 14. Rc1 {[%emt 0:08:13]} b6 {[%emt 0:12:39]} 15. Nd4 {[%emt 0:14:51]} Rc8 {[%emt 0:02:41]} 16. Ba6 {[%emt 0:03:58]} Rxc1 {[%emt 0:00:08]} 17. Qxc1 {[%emt 0:00:14]} Bc8 {[%emt 0:00:56]} 18. Bb5 {[%emt 0:00:47]} Bd7 {[%emt 0:05:43]} 19. Ba6 {[%emt 0:03:53]} Bc8 {[%emt 0:00:51]} 20. Be2 {[%emt 0:00:42]} Bd7 {[%emt 0:05:43]} 21. Qa3 {[%emt 0:05:49]} Re8 {[%emt 0:05:00]} 22. f4 {[%emt 0:01:21]} e5 {[%emt 0:03:37]} 23. dxe6 {[%emt 0:01:02]} Bxe6 {[%emt 0:00:57]} 24. Nxe6 {[%emt 0:00:15]} Rxe6 {[%emt 0:00:09]} 25. e5 {[%emt 0:09:54]} Bf8 {[%emt 0:03:44]} 26. Qb2 {[%emt 0:04:59]} Qd5 {[%emt 0:01:47]} 27. Bf3 {[%emt 0:06:19]} Qd3 {[%emt 0:00:30]} 28. Qe2 {[%emt 0:01:37]} Qxe2 {[%emt 0:03:32]} 29. Bxe2 {[%emt 0:00:07]} Rc6 {[%emt 0:01:00]} 30. Rc1 {[%emt 0:03:49]} Rxc1+ {[%emt 0:09:23]} 31. Bxc1 {[%emt 0:00:06]} Bc5+ {[%emt 0:03:11]} 32. Kf1 {[%emt 0:00:10]} Nc6 {[%emt 0:00:20]} 33. Bc4 {[%emt 0:00:28]} Nd4 {[%emt 0:01:12]} 34. g4 {[%emt 0:01:26]} Kf8 {[%emt 0:06:32]} 35. a4 {[%emt 0:02:27]} Ke7 {[%emt 0:00:51]} 36. Kg2 {[%emt 0:00:26]} Nc2 {[%emt 0:02:01]} 37. Kf3 {[%emt 0:01:25]} Nd4+ {[%emt 0:06:24]} 38. Ke4 {[%emt 0:00:13]} Nc6 {[%emt 0:03:29]} 39. f5 {[%emt 0:00:31]} f6 {[%emt 0:01:28]} 40. exf6+ {[%emt 0:00:00]} Kxf6 {[%emt 0:00:00]} 41. g5+ {[%emt 0:00:33]} Kg7 {[%emt 0:01:13]} 42. f6+ {[%emt 0:00:11]} Kf8 {[%emt 0:00:03]} 43. h4 {[%emt 0:13:03]} Nd8 {[%emt 0:02:56]} 44. Be2 {[%emt 0:05:13]} Kf7 {[%emt 0:01:05]} 45. h5 {[%emt 0:00:35]} Kf8 {[%emt 0:02:35]} 46. hxg6 {[%emt 0:00:33]} hxg6 {[%emt 0:00:03]} 47. Kd5 {[%emt 0:00:42]} Kf7 {[%emt 0:00:46]} 48. a5 {[%emt 0:01:52]} a6 {[%emt 0:08:34]} 49. Bxa6 {[%emt 0:01:42]} Bf2 {[%emt 0:00:54]} 50. Kd6 {[%emt 0:01:47]} Kf8 {[%emt 0:09:15]} 51. Kd7 {[%emt 0:01:04]} Nf7 {[%emt 0:02:29]} 52. Ba3+ {[%emt 0:00:07]} Kg8 {[%emt 0:00:10]} 53. Bc4 {[%emt 0:00:06]} bxa5 {[%emt 0:00:51]} 54. Ke8 {[%emt 0:00:09]} Be3 {[%emt 0:00:25]} 55. Bxf7+ {[%emt 0:00:05]} Kh7 {[%emt 0:00:06]} 56. Bg8+ {[%emt 0:00:06]} Kh8 {[%emt 0:00:16]} 57. f7 {[%emt 0:00:05]} Bc5 {[%emt 0:00:12]} 58. Bb2+ {[%emt 0:00:05]} 1-0

[Event "EYCC Open-U12 2019"]
[Site "Bratislava"]
[Date "2019.08.04"]
[Round "3.9"]
[White "Navumenka, Mikhei"]
[Black "Pidluznij, Gleb"]
[Result "0-1"]
[ECO "A64"]
[WhiteElo "2196"]
[BlackElo "1947"]
[Annotator "NA"]
[PlyCount "72"]
[EventDate "2019.08.02"]
[EventType "swiss"]
[EventCountry "SVK"]
[SourceTitle "playchess.com"]
[Source "ChessBase"]
[SourceQuality "1"]
[TimeControl "40/5400+30:1800+30"]

1. d4 {[%emt 0:00:00]} Nf6 {[%emt 0:00:00]} 2. c4 {[%emt 0:00:00]} g6 {[%emt 0:00:00]} 3. g3 {[%emt 0:00:00]} Bg7 {[%emt 0:00:02]} 4. Bg2 {[%emt 0:00:15]} O-O {[%emt 0:00:16]} 5. Nc3 {[%emt 0:00:05]} c5 {[%emt 0:00:50]} 6. d5 {[%emt 0:00:49]} d6 {[%emt 0:00:12]} 7. Nf3 {[%emt 0:00:24]} e6 {[%emt 0:00:37]} 8. O-O {[%emt 0:00:29]} exd5 {[%emt 0:01:04]} 9. cxd5 {[%emt 0:04:39]} Re8 {[%emt 0:00:19]} 10. Nd2 {[%emt 0:02:14]} Nbd7 {[%emt 0:01:02]} 11. a4 {[%emt 0:08:53]} a6 {[%emt 0:08:34]} 12. Qb3 {[%emt 0:03:52]} Rb8 {[%emt 0:10:02]} 13. Nc4 {[%emt 0:04:58]} Ne5 {[%emt 0:02:15]} 14. Na3 {[%emt 0:00:49]} Bd7 {[%emt 0:11:36]} 15. Bg5 {[%emt 0:29:27]} h6 {[%emt 0:01:05]} 16. Bxf6 {[%emt 0:01:53]} Bxf6 {[%emt 0:05:42]} 17. Ne4 {[%emt 0:02:12]} Be7 {[%emt 0:00:46]} 18. f4 {[%emt 0:07:11]} Ng4 {[%emt 0:01:39]} 19. a5 {[%emt 0:02:13]} b5 {[%emt 0:12:09]} 20. Nc2 {[%emt 0:02:15]} c4 {[%emt 0:04:52]} 21. Qf3 {[%emt 0:00:36]} f5 {[%emt 0:03:24]} 22. Nd2 {[%emt 0:02:17]} Bf6 {[%emt 0:04:32]} 23. Rfb1 {[%emt 0:04:12]} Qc7 {[%emt 0:02:22]} 24. h3 {[%emt 0:02:58]} Qc5+ {[%emt 0:01:20]} 25. Kh1 {[%emt 0:00:20]} Ne3 {[%emt 0:00:47]} 26. Nxe3 {[%emt 0:00:24]} Rxe3 {[%emt 0:00:47]} 27. Qf2 {[%emt 0:01:22]} Rbe8 {[%emt 0:00:30]} 28. Bf1 {[%emt 0:00:16]} Qxd5+ {[%emt 0:01:31]} 29. Nf3 {[%emt 0:00:01]} Qc5 {[%emt 0:01:03]} 30. Ra2 {[%emt 0:01:16]} Bc6 {[%emt 0:01:19]} 31. Kg2 {[%emt 0:00:32]} d5 {[%emt 0:01:59]} 32. g4 {[%emt 0:00:23]} d4 {[%emt 0:00:21]} 33. Ra3 {[%emt 0:00:09]} Rxa3 {[%emt 0:00:58]} 34. bxa3 {[%emt 0:00:00]} Re3 {[%emt 0:00:17]} 35. gxf5 {[%emt 0:00:12]} Qxf5 {[%emt 0:00:12]} 36. Qg3 {[%emt 0:00:09]} Qxb1 {[%emt 0:00:06]} 0-1

[Event "EYCC Open-U12 2019"]
[Site "Bratislava"]
[Date "2019.08.04"]
[Round "3.10"]
[White "Vergara Anton, Diego"]
[Black "Milanovic, Marko"]
[Result "1-0"]
[ECO "D02"]
[WhiteElo "2183"]
[BlackElo "1814"]
[Annotator "NA"]
[PlyCount "121"]
[EventDate "2019.08.02"]
[EventType "swiss"]
[EventCountry "SVK"]
[SourceTitle "playchess.com"]
[Source "ChessBase"]
[SourceQuality "1"]
[TimeControl "40/5400+30:1800+30"]

1. d4 {[%emt 0:00:00]} d5 {[%emt 0:00:00]} 2. Nf3 {[%emt 0:00:00]} Nf6 {[%emt 0:00:00]} 3. g3 {[%emt 0:00:02]} e6 {[%emt 0:00:00]} 4. Bg2 {[%emt 0:02:19]} b5 {[%emt 0:00:20]} 5. a4 {[%emt 0:01:06]} b4 {[%emt 0:00:24]} 6. c4 {[%emt 0:00:39]} bxc3 {[%emt 0:00:40]} 7. bxc3 {[%emt 0:01:33]} Nbd7 {[%emt 0:01:29]} 8. O-O {[%emt 0:00:54]} Be7 {[%emt 0:01:13]} 9. c4 {[%emt 0:02:45]} c6 {[%emt 0:02:45]} 10. Bf4 {[%emt 0:06:11]} O-O {[%emt 0:00:56]} 11. Nbd2 {[%emt 0:02:55]} Ba6 {[%emt 0:08:49]} 12. Re1 {[%emt 0:03:20]} Nh5 {[%emt 0:04:28]} 13. cxd5 {[%emt 0:06:10]} Nxf4 {[%emt 0:04:50]} 14. gxf4 {[%emt 0:01:15]} cxd5 {[%emt 0:00:20]} 15. e3 {[%emt 0:03:10]} Bd3 16. Ne5 {[%emt 0:05:01]} Nxe5 {[%emt 0:07:07]} 17. fxe5 {[%emt 0:00:17]} Rb8 {[%emt 0:01:36]} 18. Nf1 {[%emt 0:07:00]} Bc4 {[%emt 0:09:58]} 19. e4 {[%emt 0:06:42]} Bb4 {[%emt 0:04:42]} 20. Re3 {[%emt 0:01:29]} Qa5 {[%emt 0:02:15]} 21. Rh3 {[%emt 0:06:52]} Bxf1 {[%emt 0:17:04]} 22. Qh5 {[%emt 0:03:34]} h6 {[%emt 0:01:11]} 23. Rxf1 {[%emt 0:01:24]} Be7 {[%emt 0:05:15]} 24. exd5 {[%emt 0:05:19]} exd5 {[%emt 0:01:35]} 25. Rg3 {[%emt 0:01:42]} Qb6 {[%emt 0:06:52]} 26. Qg4 {[%emt 0:05:49]} Qg6 {[%emt 0:04:58]} 27. Qxg6 {[%emt 0:00:22]} fxg6 {[%emt 0:00:02]} 28. Bxd5+ {[%emt 0:00:24]} Kh8 {[%emt 0:00:52]} 29. Bc6 {[%emt 0:01:31]} g5 {[%emt 0:00:52]} 30. Rc3 {[%emt 0:03:12]} Bb4 {[%emt 0:02:51]} 31. Rc2 {[%emt 0:04:57]} Rf4 {[%emt 0:01:12]} 32. Rd1 {[%emt 0:01:45]} Rd8 {[%emt 0:00:57]} 33. d5 {[%emt 0:00:31]} Re4 {[%emt 0:01:55]} 34. Rb1 {[%emt 0:01:14]} a5 {[%emt 0:01:23]} 35. e6 {[%emt 0:00:10]} Rc8 {[%emt 0:01:54]} 36. Rbb2 {[%emt 0:02:46]} Re1+ {[%emt 0:01:05]} 37. Kg2 {[%emt 0:00:46]} Kg8 {[%emt 0:01:02]} 38. Bd7 {[%emt 0:02:39]} Rxc2 {[%emt 0:00:24]} 39. Rxc2 {[%emt 0:00:01]} Kf8 {[%emt 0:00:32]} 40. Rc8+ {[%emt 0:00:00]} Ke7 {[%emt 0:00:00]} 41. Bc6 {[%emt 0:02:05]} Bd6 {[%emt 0:08:14]} 42. Ra8 {[%emt 0:02:20]} Bb4 {[%emt 0:00:30]} 43. Ra7+ {[%emt 0:00:27]} Kf6 {[%emt 0:00:27]} 44. Rf7+ {[%emt 0:02:26]} Kg6 {[%emt 0:00:33]} 45. Be8 {[%emt 0:02:53]} Re5 46. Rd7+ {[%emt 0:05:47]} Kf6 {[%emt 0:05:04]} 47. Rf7+ {[%emt 0:05:07]} Kg6 {[%emt 0:00:08]} 48. Bc6 {[%emt 0:01:09]} Ba3 {[%emt 0:01:24]} 49. Ra7 {[%emt 0:04:31]} Bb4 {[%emt 0:00:27]} 50. Rd7 {[%emt 0:03:00]} Ba3 {[%emt 0:04:22]} 51. Bb5 {[%emt 0:00:52]} Kf6 {[%emt 0:05:05]} 52. Rf7+ {[%emt 0:01:07]} Kg6 {[%emt 0:00:29]} 53. Bd3+ {[%emt 0:00:29]} Kh5 {[%emt 0:00:51]} 54. Rxg7 {[%emt 0:00:46]} Bb4 {[%emt 0:06:53]} 55. Rd7 {[%emt 0:02:31]} Re1 {[%emt 0:00:34]} 56. Bc4 {[%emt 0:01:11]} Re4 {[%emt 0:01:09]} 57. Bb3 {[%emt 0:01:57]} Kh4 {[%emt 0:03:15]} 58. Rh7 {[%emt 0:06:04]} Kh5 {[%emt 0:01:26]} 59. Rh8 {[%emt 0:02:30]} Re1 {[%emt 0:00:57]} 60. Rd8 {[%emt 0:00:42]} Kg6 {[%emt 0:02:31]} 61. d6 {[%emt 0:00:36]} 1-0

[Event "EYCC Open-U12 2019"]
[Site "Bratislava"]
[Date "2019.08.04"]
[Round "3.11"]
[White "Tarhan, Adar"]
[Black "Celik, Hasan Huseyin"]
[Result "1-0"]
[ECO "C07"]
[WhiteElo "1972"]
[BlackElo "1903"]
[Annotator "NA"]
[PlyCount "97"]
[EventDate "2019.08.02"]
[EventType "swiss"]
[EventCountry "SVK"]
[SourceTitle "playchess.com"]
[Source "ChessBase"]
[SourceQuality "1"]
[TimeControl "40/5400+30:1800+30"]

1. e4 {[%emt 0:00:00]} e6 {[%emt 0:00:00]} 2. d4 {[%emt 0:00:00]} d5 {[%emt 0:00:00]} 3. Nd2 {[%emt 0:00:00]} c5 {[%emt 0:00:00]} 4. Ngf3 {[%emt 0:00:00]} Nf6 {[%emt 0:00:00]} 5. exd5 {[%emt 0:00:02]} Nxd5 {[%emt 0:00:08]} 6. dxc5 {[%emt 0:03:10]} Bxc5 {[%emt 0:02:32]} 7. Ne4 {[%emt 0:00:19]} Be7 {[%emt 0:03:02]} 8. c4 {[%emt 0:00:17]} Nf6 {[%emt 0:01:16]} 9. Qxd8+ {[%emt 0:00:14]} Kxd8 {[%emt 0:00:16]} 10. Nc3 {[%emt 0:00:29]} Nc6 {[%emt 0:19:45]} 11. Bf4 {[%emt 0:02:51]} a6 {[%emt 0:00:42]} 12. O-O-O+ {[%emt 0:00:18]} Ke8 {[%emt 0:00:16]} 13. g3 {[%emt 0:04:07]} Ng4 {[%emt 0:03:10]} 14. Rd2 {[%emt 0:05:47]} e5 {[%emt 0:00:17]} 15. Nd5 {[%emt 0:01:48]} Rb8 {[%emt 0:02:42]} 16. Nxe7 {[%emt 0:00:42]} Kxe7 {[%emt 0:00:18]} 17. Re2 {[%emt 0:01:06]} Kf6 {[%emt 0:13:08]} 18. Bd2 {[%emt 0:03:06]} Re8 {[%emt 0:16:35]} 19. h3 {[%emt 0:02:24]} Nh6 {[%emt 0:00:04]} 20. Bg2 {[%emt 0:00:45]} b5 {[%emt 0:11:21]} 21. g4 {[%emt 0:04:15]} Nxg4 {[%emt 0:06:56]} 22. hxg4 {[%emt 0:00:33]} Bxg4 {[%emt 0:00:01]} 23. Rhe1 {[%emt 0:03:09]} Rbc8 {[%emt 0:03:57]} 24. Kb1 {[%emt 0:03:12]} Bf5+ {[%emt 0:00:30]} 25. Ka1 {[%emt 0:00:28]} b4 {[%emt 0:02:26]} 26. Bg5+ {[%emt 0:01:09]} Kg6 {[%emt 0:00:09]} 27. Bf4 {[%emt 0:03:13]} Kf6 {[%emt 0:02:29]} 28. Nxe5 {[%emt 0:00:59]} Nd4 {[%emt 0:00:06]} 29. b3 {[%emt 0:03:11]} Nxe2 {[%emt 0:00:17]} 30. Rxe2 {[%emt 0:00:03]} Rcd8 {[%emt 0:00:49]} 31. Kb2 {[%emt 0:00:13]} Re7 {[%emt 0:01:36]} 32. Bg3 {[%emt 0:01:33]} Rde8 {[%emt 0:01:30]} 33. f4 {[%emt 0:01:30]} h6 {[%emt 0:01:04]} 34. Bc6 {[%emt 0:01:19]} Rc8 {[%emt 0:01:00]} 35. Bd5 {[%emt 0:02:00]} Be6 {[%emt 0:00:54]} 36. Bf3 {[%emt 0:01:47]} g5 {[%emt 0:00:46]} 37. Nc6 {[%emt 0:00:51]} Ree8 {[%emt 0:00:19]} 38. fxg5+ {[%emt 0:05:06]} hxg5 {[%emt 0:00:10]} 39. Rf2 {[%emt 0:03:55]} Kg7 {[%emt 0:01:31]} 40. Nxb4 {[%emt 0:00:00]} f5 {[%emt 0:00:00]} 41. Be5+ {[%emt 0:02:46]} Kg6 {[%emt 0:01:41]} 42. Bd6 {[%emt 0:02:05]} Bxc4 {[%emt 0:01:49]} 43. bxc4 {[%emt 0:01:25]} Rxc4 {[%emt 0:00:10]} 44. Kb3 {[%emt 0:00:55]} Rec8 {[%emt 0:00:32]} 45. Bb7 {[%emt 0:00:34]} Rc3+ {[%emt 0:00:08]} 46. Kb2 {[%emt 0:00:09]} R8c4 {[%emt 0:00:12]} 47. Bd5 {[%emt 0:01:36]} Rc8 {[%emt 0:00:15]} 48. Be6 {[%emt 0:00:05]} R8c6 {[%emt 0:01:00]} 49. Bxf5+ {[%emt 0:00:14]} 1-0

[Event "EYCC Open-U12 2019"]
[Site "Bratislava"]
[Date "2019.08.04"]
[Round "3.12"]
[White "Macias Pino, Diego"]
[Black "Codreanu, Marius"]
[Result "1/2-1/2"]
[ECO "B12"]
[WhiteElo "2150"]
[BlackElo "1834"]
[Annotator "NA"]
[PlyCount "45"]
[EventDate "2019.08.02"]
[EventType "swiss"]
[EventCountry "SVK"]
[SourceTitle "playchess.com"]
[Source "ChessBase"]
[SourceQuality "1"]
[TimeControl "40/5400+30:1800+30"]

1. e4 {[%emt 0:00:00]} c6 {[%emt 0:00:00]} 2. d4 {[%emt 0:00:00]} d5 {[%emt 0:00:00]} 3. e5 {[%emt 0:00:00]} Bf5 {[%emt 0:00:00]} 4. h4 {[%emt 0:00:02]} h5 {[%emt 0:00:00]} 5. Bd3 {[%emt 0:00:44]} Bxd3 {[%emt 0:00:06]} 6. Qxd3 {[%emt 0:00:03]} e6 {[%emt 0:00:09]} 7. c4 {[%emt 0:06:44]} Nd7 {[%emt 0:02:59]} 8. Nf3 {[%emt 0:12:53]} Ne7 {[%emt 0:07:06]} 9. Bg5 {[%emt 0:03:39]} Qb6 {[%emt 0:20:00]} 10. Nbd2 {[%emt 0:07:10]} Nf5 {[%emt 0:07:10]} 11. O-O {[%emt 0:12:21]} Be7 {[%emt 0:08:58]} 12. Bxe7 {[%emt 0:09:12]} Nxe7 {[%emt 0:00:12]} 13. b4 {[%emt 0:11:10]} O-O {[%emt 0:06:50]} 14. Rfb1 {[%emt 0:06:01]} Rfd8 {[%emt 0:12:10]} 15. b5 {[%emt 0:05:41]} c5 {[%emt 0:00:51]} 16. cxd5 {[%emt 0:00:54]} exd5 {[%emt 0:02:01]} 17. dxc5 {[%emt 0:09:25]} Nxc5 {[%emt 0:00:43]} 18. Qe2 {[%emt 0:00:24]} Ne6 {[%emt 0:01:40]} 19. g3 {[%emt 0:02:01]} Nf5 {[%emt 0:01:20]} 20. Kg2 {[%emt 0:00:07]} Rac8 {[%emt 0:03:19]} 21. Qd3 {[%emt 0:03:17]} Nfd4 {[%emt 0:02:04]} 22. Nxd4 {[%emt 0:01:17]} Qxd4 {[%emt 0:01:40]} 23. Qxd4 {[%emt 0:00:14]} 1/2-1/2